Cogmind - Beta 13 @@@ ROGUE MODE // 2024.04.26 @ 19:21:42 Player: Vyx Result: Destroyed by AA-D54(R) with Subdweller Shrapnel Launcher Performance ------------- Evolutions (0) 0 Regions Visited (2) 400 Robots Destroyed (29) 145 Value Destroyed (666) 666 Prototype IDs (2) 40 Alien Tech Used (0) 0 Bonus (0) 0 TOTAL SCORE: 1251 Bonus ------- None Cogmind --------- Core Integrity 0/250 Matter 300/300 Energy 248/250 System Corruption 5% Temperature Cool (0) Movement Rolling (120) Ox2 Location -10/Subcaves Parts ------- > --- POWER (1) -------- Ion Engine > --- PROPULSION (2) --- Wheel Compact Wheel > --- UTILITY (2) ------ High-capacity Storage Unit Light Armor Plating > --- WEAPON (2) ------- Subdweller Laser Subdweller Beam Cannon > --- INVENTORY (20) --- Ion Engine Ion Engine Subdweller Monowheel Heat Sink Heat Sink Disposable Heat Sink Small Battery (100) Small Battery (100) Medium Matter Pod (100) High-capacity Matter Pod (200) EM Pulse Gun Riot Gun Subdweller Beam Cannon Makeshift Axe Scrap Shield Fragment (50) Scrap Shield Fragment (47) Scrap Shield Fragment (46) Scrap Shield Fragment (46) Scrap Shield Fragment (41) Scrap Shield Fragment (40) Peak State ------------ > --- POWER ------------ Light Nuclear Core > --- PROPULSION ------- Light Treads Light Treads > --- UTILITY ---------- Improved Heat Sink High-capacity Storage Unit > --- WEAPON ----------- EM Pulse Gun EM Pulse Gun > --- INVENTORY -------- Ion Engine Ion Engine Wheel Compact Wheel Heat Sink Heat Sink Small Battery Small Battery Medium Matter Pod High-capacity Matter Pod Light Assault Rifle [Rating: 12] Favorites ----------- Power Ion Engine Engine Ion Engine Power Core Light Nuclear Core Propulsion Light Treads Treads Light Treads Wheel Wheel Utility High-capacity Storage Unit Device Improved Heat Sink Storage High-capacity Storage Unit Protection Light Armor Plating Weapon EM Pulse Gun Energy Gun EM Pulse Gun Energy Cannon Subdweller Beam Cannon Ballistic Gun Light Assault Rifle Ballistic Cannon Light Cannon Build | -11 -10 -10 ------- Run | Yrd Mat Sub Slots Evolved . | . . . Power . | . . . Propulsion . | . . . Utility . | . . . Weapon . | . . . Parts Attached 32 | 6 16 10 Power 5 | 1 3 1 Engine 4 | 1 2 1 Core 1 | . 1 . Reactor . | . . . Propulsion 15 | 2 7 6 Treads 6 | 2 2 2 Leg . | . . . Wheel 9 | . 5 4 Hover . | . . . Flight . | . . . Utility 5 | 1 3 1 Device 2 | . 2 . Storage 2 | 1 1 . Processor . | . . . Hackware . | . . . Protection 1 | . . 1 Artifact . | . . . Weapon 7 | 2 3 2 Energy Gun 4 | 1 2 1 Energy Cannon 1 | . . 1 Ballistic Gun 1 | 1 . . Ballistic Cannon 1 | . 1 . Launcher . | . . . Special Weapon . | . . . Impact Weapon . | . . . Slashing Weapon . | . . . Piercing Weapon . | . . . Special Melee Weapon . | . . . Unidentified Prototypes . | . . . Corrupted Parts 1 | . . 1 System Corruption 4 | . . 4 Parts Lost 2 | . 2 . Power . | . . . Propulsion 1 | . 1 . Utility . | . . . Weapon 1 | . 1 . Highest Loss Streak 2 | . 2 . To Critical Strikes . | . . . Average Slot Usage (%) 94 | . 95 90 Engine 11 | . 10 14 Core 2 | . 3 . Treads 10 | . 13 3 Wheel 16 | . 14 21 Device 5 | . 6 1 Storage 17 | . 18 14 Protection 2 | . . 8 Energy Gun 12 | . 9 20 Energy Cannon 1 | . . 5 Ballistic Gun 6 | . 9 . Ballistic Cannon 6 | . 8 . Naked Turns . | . . . Heaviest Build 60 | 13 54 60 Greatest Support 40 | 40 40 40 Greatest Overweight (x) 4 | 2 4 3 Average Overweight (x) 1 | . 1 1 Largest Inventory Capacity 20 | 8 20 20 Average Capacity 16 | 7 16 20 Most Carried 20 | 8 15 20 Average Carried 11 | 5 10 18 Final Capacity 20 | 8 20 20 Final Carried 20 | 8 15 20 Class Distribution -------------------- 100% | Mutant Dominant Class ---------------- Mutant | -10/Materials Mutant | -10/Subcaves Resources | -11 -10 -10 ----------- Run | Yrd Mat Sub Matter Collected 1098 | 370 596 132 Remotely . | . . . Salvage Created 949 | 156 534 259 Parts 66 | 12 35 19 Haulers Intercepted 2 | . 2 . Recyclers Shooed 1 | . 1 . Parts Field Recycled . | . . . Retrieved Matter . | . . . Parts Self-Destructed 12 | . . 12 Prevented 2 | . . 2 Kills | -11 -10 -10 ------- Run | Yrd Mat Sub Combat Hostiles Destroyed 20 | . 15 5 Guns 8 | . 5 3 Cannons 12 | . 10 2 Classes Destroyed 10 | 3 5 2 Worker 2 | 2 . . Tunneler 2 | 2 . . Hauler 2 | . 2 . Recycler 1 | 1 . . Operator 1 | . 1 . Watcher 1 | . 1 . Swarmer 5 | . 5 . Grunt 10 | . 10 . Sentry 1 | . . 1 Subdweller 4 | . . 4 Best Kill Streak 4 | 3 4 2 Combat Bots Only 4 | . 4 2 Max Kills in Single Turn 1 | 1 1 1 Gunslinging . | . . . Exploded . | . . . Melee . | . . . Uniques/NPCs Destroyed . | . . . Combat | -11 -10 -10 -------- Run | Yrd Mat Sub Hostile Shots Fired 92 | . 65 27 Missed 25 | . 17 8 Damage Taken 865 | . 473 392 Core 263 | . 108 155 Absorbed by Shields . | . . . Core Remaining (%) 100 | 100 . . Volleys Fired 80 | 12 54 14 Largest 2 | 2 2 2 Hottest 140 | 70 80 140 Shots Fired 151 | 24 101 26 Gun 108 | 24 61 23 Cannon 43 | . 40 3 Launcher . | . . . Special . | . . . Kinetic 97 | 12 85 . Thermal 24 | 12 . 12 Explosive . | . . . Electromagnetic 30 | . 16 14 Robot Hit Streak 10 | 7 8 10 Robot Miss Streak 3 | 2 3 2 Penetration Max . | . . . Secondary Targets 1 | . . 1 Max Gunslinging Chain 1 | . . 1 Shots Hit Robots 104 | 16 70 18 Core Hits 42 | 8 26 8 Critical Kills . | . . . Critical Parts Destroyed . | . . . Critical Strikes 2 | . 2 . Blast 2 | . 2 . Melee Attacks . | . . . Impact . | . . . Slashing . | . . . Piercing . | . . . Sneak Attacks . | . . . Combat Hostiles . | . . . Follow-up Attacks . | . . . Damage Inflicted 1359 | 166 924 269 Guns 752 | 166 369 217 Cannons 603 | . 551 52 Explosions . | . . . Melee . | . . . Ramming 4 | . 4 . Kinetic 816 | 42 774 . Thermal 272 | 124 . 148 Explosive . | . . . Electromagnetic 267 | . 146 121 Impact . | . . . Slashing . | . . . Piercing . | . . . Highest Corruption 5 | . 1 5 Average Corruption 2 | . 1 4 Corruption Purged . | . . . Corruption Blocked . | . . . Effects 18 | . 4 14 Message Errors 2 | . 1 1 Matter Fused 6 | . 1 5 Heat Flow Errors 2 | . 1 1 Energy Discharges 2 | . . 2 Data Loss (minor) 4 | . 1 3 Misfires 1 | . . 1 Weapon Failures 1 | . . 1 Overload Shots . | . . . Overflow Damage . | . . . Projectiles . | . . . Explosions . | . . . Melee . | . . . Knockbacks 13 | . 13 . Impact . | . . . Kinetic 12 | . 12 . Secondary 1 | . 1 . Self-Inflicted Damage . | . . . Shots . | . . . Rammed 2 | . 2 . Targets Rammed 2 | . 2 . Kicked . | . . . Crushed . | . . . Highest Temperature 261 | 100 261 90 Average Temperature 34 | 39 30 38 Received Heat Transfer 303 | . 162 141 Siege Activations . | . . . Robots Corrupted . | . . . Combat Hostiles . | . . . Parts Fried . | . . . Impact Corruptions . | . . . Robots Melted . | . . . Combat Hostiles . | . . . Parts Melted 2 | 1 . 1 Heat Transferred 569 | 370 . 199 Parts Sabotaged . | . . . Parts Stolen . | . . . Parts Stripped . | . . . Power Chain Reactions . | . . . Alert | -11 -10 -10 ------- Run | Yrd Mat Sub Peak Influence 231 | 25 231 . Initial 16 | . 16 . Average 75 | 10 83 . Maximum Alert Level 1 | . 1 . Low Security (%) 91 | 100 90 . Level 1 8 | . 9 . Level 2 . | . . . Level 3 . | . . . Level 4 . | . . . Level 5 . | . . . High Security . | . . . Max Security . | . . . Squads Dispatched 4 | . 4 . Investigation 4 | . 4 . Extermination . | . . . Reinforcement . | . . . Assault . | . . . Garrison . | . . . Intercept . | . . . Searches Triggered . | . . . Construction Impeded . | . . . Haulers Reinforced . | . . . Active Scanning Responses . | . . . Cargo Convoy Interrupts . | . . . Stealth | -11 -10 -10 --------- Run | Yrd Mat Sub Distress Signals . | . . . Communications Jammed . | . . . Distress Signals . | . . . Times Spotted 31 | . 23 8 Peak Tracking Total 5 | . 5 4 Tactical Retreats . | . . . Traps | -11 -10 -10 ------- Run | Yrd Mat Sub Traps Triggered 1 | . 1 . Indirectly . | . . . Trap Hack Attempts . | . . . Triggered . | . . . Disarmed . | . . . Reprogrammed . | . . . Reused . | . . . Traps Extracted . | . . . Installed . | . . . Triggered . | . . . Machines | -11 -10 -10 ---------- Run | Yrd Mat Sub Machines Disabled . | . . . Max in Single Turn . | . . . Machines Repaired . | . . . Machines Dismantled . | . . . Machines Sabotaged . | . . . Overloaded Fab Kills . | . . . Hacking | -11 -10 -10 --------- Run | Yrd Mat Sub Machines Accessed 8 | . 8 . Terminals 8 | . 8 . Fabricators . | . . . Repair Stations . | . . . Recycling Units . | . . . Scanalyzers . | . . . Garrison Access . | . . . Total Hacks 23 | . 23 . Successful 13 | . 13 . Failed 9 | . 9 . Catastrophic 1 | . 1 . Database Lockouts 1 | . 1 . Manual 15 | . 15 . Terminals 23 | . 23 . Fabricators . | . . . Repair Stations . | . . . Recycling Units . | . . . Scanalyzers . | . . . Garrison Access . | . . . Terminal Hacks 13 | . 13 . Record 9 | . 9 . Robot Analysis 1 | . 1 . Prototype ID Bank 1 | . 1 . Hauler Manifests 1 | . 1 . Registered Components 1 | . 1 . Fabricator Hacks . | . . . Repair Station Hacks . | . . . Recycling Unit Hacks . | . . . Scanalyzer . | . . . Garrison Access Hacks . | . . . Unauthorized Hacks . | . . . Terminals . | . . . Fabricators . | . . . Repair Stations . | . . . Recycling Units . | . . . Scanalyzers . | . . . Garrison Access . | . . . Data Cores Recovered 1 | . 1 . Used . | . . . Hacking Detections 8 | . 8 . Full Trace Events 5 | . 5 . Feedback Events 1 | . 1 . Corruption 1 | . 1 . Feedback Blocked . | . . . Robot Schematics Acquired . | . . . Robots Built . | . . . Authchips . | . . . Time . | . . . Total Robot Build Rating . | . . . Part Schematics Acquired . | . . . Parts Built . | . . . Authchips . | . . . Time . | . . . Total Part Build Rating . | . . . Parts Repaired . | . . . Time . | . . . Parts Recycled . | . . . Recycled Matter . | . . . Retrieved Matter . | . . . Retrieved Components . | . . . Parts Scanalyzed . | . . . Part Schematics Acquired . | . . . Parts Damaged . | . . . Bothacking | -11 -10 -10 ------------ Run | Yrd Mat Sub Used RIF Installer . | . . . Robots Hacked . | . . . Non-combat . | . . . Combat . | . . . Robot Hacks Applied . | . . . Relay Couplers Released . | . . . Fabnet Peak Effective % . | . . . Robots Rewired . | . . . Allies Hacked . | . . . Hacks Repelled . | . . . Allies | -11 -10 -10 -------- Run | Yrd Mat Sub Total Allies . | . . . Largest Group . | . . . Highest-Rated Group . | . . . Highest-Rated Ally . | . . . Total Orders . | . . . Ally Attacks . | . . . Total Damage . | . . . Kills . | . . . Allies Corrupted . | . . . Allies Melted . | . . . Intel | -11 -10 -10 ------- Run | Yrd Mat Sub Robot Analysis Total 1 | . 1 . Derelict Logs Recovered 1 | . . 1 Drone Launches . | . . . Drone Recoveries . | . . . Exploration | -11 -10 -10 ------------- Run | Yrd Mat Sub Turns Passed 2256 | 187 1522 547 Spaces Moved 1325 | 84 882 359 Core 3 | 3 . . Treads 435 | 81 344 10 Legs . | . . . Wheels 887 | . 538 349 Hover . | . . . Flight . | . . . Fastest Speed 50 | 50 110 110 Average Speed 137 | 157 140 124 Slowest Speed 240 | 160 240 240 Overloaded Moves . | . . . Propulsion Burnouts . | . . . Robots Hopped . | . . . Cave-ins Triggered . | . . . Exploration Rate (%) 40 | 6 94 22 Regions Visited 2 Branch Regions 1 Pre-discovered Areas 1 | . . 1 Known Exits Taken . | . . . Unknown Exits Taken 2 | 1 1 . Scrap Searched 1 | . . 1 Spaces Dug . | . . . Terrain Destroyed . | . . . Melee . | . . . Projectile . | . . . AOE . | . . . Terrain Rammed . | . . . Walls Destroyed . | . . . Machines Disabled . | . . . Actions | -11 -10 -10 --------- Run | Yrd Mat Sub Total 1617 | 115 1069 433 Wait 120 | . 93 27 Move 1323 | 83 881 359 Hop . | . . . Pick Up 41 | 11 15 15 Fast Attach 9 | 6 2 1 Attach 7 | . 4 3 Detach . | . . . Swap 16 | . 10 6 Drop 19 | 3 8 8 Fire 80 | 12 54 14 Melee . | . . . Ram 1 | . 1 . Kick . | . . . Crush 1 | . 1 . Escape Stasis . | . . . Rewire . | . . . Trap . | . . . Miscellaneous . | . . . Route ------- -11/Scrapyard -10/Materials (discovered 5 exits: [*Mat x3] / [*Min] / [*Sub]) -10/Subcaves (discovered 1 exit: [*Mat]) History --------- Turn | Location | Event 18 | -11/Scrapyard | Discovered new exit (range 14) 188 | -11/Scrapyard | Entered Materials 206 | -10/Materials | Discovered new exit (range 16) 308 | -10/Materials | Build established: Mutant 385 | -10/Materials | Discovered new exit (range 3) 866 | -10/Materials | Discovered new exit (range 13) 963 | -10/Materials | Central database locked down 1530 | -10/Materials | Discovered new exit (range 3) 1700 | -10/Materials | Discovered new exit (range 10) 1710 | -10/Materials | Entered Subcaves 1712 | -10/Subcaves | Core integrity fell below 50% 1818 | -10/Subcaves | Discovered new exit (range 10) 1922 | -10/Subcaves | A swath of the cavern ceiling suddenly collapsed 2053 | -10/Subcaves | Shifting Twisted Machinery released Sub. Beam Cannon 2216 | -10/Subcaves | Learned location of Mines (-9) 2240 | -10/Subcaves | A Subdweller sparked back to life 2240 | -10/Subcaves | A Subdweller sparked back to life 2240 | -10/Subcaves | A Subdweller sparked back to life 2257 | -10/Subcaves | Destroyed by AA-D54(R) with Subdweller Shrapnel Launcher Last Messages --------------- 02154_ Acquired Riot Gun. 02216_ Acquired derelict log, extracted data. World map updated: -9/Mines. 02219_ System corrupted: Matter fused (-7). 02227_ Searching scrap... 02227_ Found Mak. Axe. 02227_ Found 13 Matter. 02228_ Acquired 7 matter. 02229_ Dropped Hammer. 02230_ Acquired Mak. Axe. 02238_ System corrupted: Matter fused (-5). 02240_ VS-J15(R) creaks and sparks as it begins to move. 02240_ 4Y-BHB(R) creaks and sparks as it begins to move. 02240_ AA-D54(R) creaks and sparks as it begins to move. 02244_ VS-J15(R) destroyed. 02250_ Sub. Optics melted. 02250_ 4Y-BHB(R) destroyed. 02253_ Dropped Lgt. Assault Rifle. 02255_ Acquired Sub. Beam Cannon. 02256_ Acquired 5 matter. Map ----- +----------------------------------------------------+ | ?????????????????????????????????????????????????? | | ?????????????????????????????????????????????????? | | ?????????????????????????????????????????????????? | | ?????????????????????????????????????????????????? | | ?????????????????????????????????????????????????? | | ?????????????????????????????????????????????????? | | ?????????????????????????????????????????????????? | | ?????????????????????????????????????????????????? | | ?????????????????????????????????????????????????? | | ?????????????????????????????????????????????????? | | ?????????????????????????????????????????????????? | | ?????????????????????????????????????????????????? | | ?????????????????????????????????????????????????? | | ????????????????????????????????????????????????? | | ????????????????????????????????????????????????? | | ????????????????????????????????????????????????? | | ????????????????????????????????????????????????? | | ##??????????????????????????????????????????????? | | #???????###????????????????????????????????????? | | ???????# #??????????######????????????????????? | | ??????## ??????????# ##???????????????????? | | #??????# ??????????#<< #???????????????????? | | #??##### #???????#### #???????????????????? | | ##?? #???????# R <